bitfinex/quotes_ETHUSD_20250112
["timestamp","ask_amount","ask_price","bid_price","bid_amount"]
[1736686009585,0.82381529,3262.7,3261.9,0.7866]
[1736686009883,0.21695548,3262.2,3261.9,0.7866]
[1736686010099,0.82381529,3262.7,3261.9,1.32595927]
[1736686010399,0.21695548,3262.1,3261.9,1.32595927]
[1736686010598,2.96927529,3262.7,3261.9,1.32595927]
[1736686010771,0.21695548,3262.0,3261.7,5.37]
[1736686011098,0.03831529,3262.7,3261.7,5.37]
[1736686011099,0.7855,3262.2,3261.7,5.37]
[1736686011273,0.82381965,3262.2,3261.7,5.37]
[1736686011462,0.21695548,3262.1,3261.7,5.37]
[1736686013096,0.21695548,3262.1,3261.8,3.0]
[1736686013300,0.21695548,3262.1,3261.8,3.837]
[1736686013461,0.21711173,3262.0,3261.8,3.0]
[1736686013799,0.82381943,3262.2,3261.8,3.0]
[1736686014000,0.21711173,3261.9,3261.8,3.0]
[1736686014201,0.82381943,3262.2,3261.8,3.0]
[1736686014358,0.21711173,3261.9,3261.8,3.0]
[1736686014871,0.7855,3262.2,3261.8,3.0]
[1736686015077,0.21711173,3261.9,3261.8,3.0]
[1736686015263,0.7855,3262.2,3261.8,3.0]
[1736686015468,0.21697586,3261.9,3261.5,5.93285]
[1736686015789,0.7855,3262.2,3261.5,7.063885]
[1736686016164,0.7855,3262.2,3261.5,4.917635]
[1736686016577,0.7855,3262.2,3261.5,3.7866]
[1736686016977,0.82381965,3262.2,3261.5,3.7866]
[1736686017199,0.21688756,3262.1,3261.5,3.7866]
[1736686017409,0.7855,3262.2,3261.5,5.93283]
[1736686018481,0.21687397,3262.1,3261.5,5.93283]
[1736686018821,0.21687397,3262.1,3261.5,3.0]
[1736686019019,0.82381965,3262.2,3261.5,3.0]
[1736686019180,0.21687397,3262.0,3261.5,3.0]
[1736686019521,0.82381965,3262.2,3261.5,3.0]
[1736686019683,0.7855,3261.8,3261.5,3.0]
[1736686020080,0.21683318,3261.7,3261.5,3.0]
[1736686020491,0.7855,3261.8,3261.5,3.0]
[1736686020817,0.21683318,3261.7,3261.5,3.0]
[1736686021319,0.7855,3261.8,3261.5,3.0]
[1736686021542,0.7855,3261.8,3261.3,3.0]
[1736686023538,0.7855,3261.8,3261.3,3.03065939]
[1736686025225,0.7855,3261.8,3261.3,3.03065939]
[1736686025826,0.21670412,3261.7,3261.3,3.03065939]
[1736686025980,0.7855,3261.8,3261.3,3.03065939]
[1736686026185,0.21670412,3261.6,3261.3,0.03065939]
[1736686026514,0.7855,3261.8,3261.3,0.03065939]
[1736686026822,0.21672448,3261.7,3261.3,0.03065939]
[1736686027122,0.7855,3261.8,3261.3,0.03065939]
[1736686027480,0.21672448,3261.7,3261.3,0.03065939]
[1736686027886,0.7855,3261.8,3261.3,0.03065939]
[1736686028396,0.21672448,3261.7,3261.3,0.03065939]
[1736686028606,0.7855,3261.8,3261.3,0.03065939]
[1736686028818,0.21672448,3261.6,3261.1,3.0]
[1736686029119,0.0383245,3261.6,3261.1,3.0]
[1736686029343,0.29698745,3261.6,3261.1,3.0]
[1736686029921,0.7855,3261.8,3261.2,0.03066097]
[1736686030228,0.21667012,3261.7,3261.2,0.03066097]
[1736686030524,0.21667012,3261.7,3261.1,5.14651]
[1736686030899,0.21667012,3261.7,3261.2,0.03065991]
[1736686031109,0.21667012,3261.7,3261.1,5.14651]
[1736686031584,0.21667012,3261.7,3261.2,0.03065991]
[1736686031806,0.21667012,3261.7,3261.1,5.14651]
[1736686035524,0.21667012,3261.7,3261.1,3.0]
[1736686035726,0.81582495,3261.6,3261.1,3.0]
[1736686035901,0.81582495,3261.6,3260.8,5.7787175]
[1736686036091,0.21659538,3261.5,3260.8,5.15418]
[1736686036709,0.21659538,3261.5,3260.9,0.03066189]
[1736686037504,0.7775,3261.6,3260.9,0.03066189]
[1736686037700,1.10172745,3261.6,3260.8,5.15418]
[1736686038058,0.21659538,3261.5,3260.9,0.0306619]
[1736686038697,0.21659538,3261.5,3260.8,5.15418]
[1736686043346,2.96219741,3261.4,3260.6,5.37]
[1736686043494,2.18469741,3261.4,3260.6,5.37]
[1736686043695,0.45640531,3261.3,3260.7,3.0]
[1736686043896,2.14651,3261.1,3260.7,3.0]
[1736686044134,0.7775,3260.9,3260.3,0.8215]
[1736686044635,0.21609256,3260.8,3260.3,0.8215]
[1736686044931,0.21609256,3260.8,3260.3,1.44375715]
[1736686047233,0.21609256,3260.8,3260.4,0.03066747]
[1736686047451,0.21609256,3260.8,3260.4,3.03066747]
[1736686047731,0.21609256,3260.8,3260.4,0.69281393]
[1736686048036,0.7804,3261.2,3260.6,2.14683]
[1736686048209,0.7804,3261.5,3260.8,0.7868]
[1736686048536,0.7804,3261.5,3260.9,0.03066322]
[1736686051606,2.92666,3261.5,3260.7,0.0075]
[1736686051810,0.7804,3261.3,3260.7,0.0075]
[1736686052007,0.7804,3261.3,3260.6,3.0]
[1736686052213,0.7804,3261.1,3260.6,3.0]
[1736686053211,0.03833387,3261.0,3260.6,3.0]
[1736686053418,0.7804,3260.9,3260.6,3.0]
[1736686054329,0.7804,3260.9,3260.2,5.14708]
[1736686055963,0.03833463,3260.8,3260.1,5.68991359]
[1736686056162,0.03833463,3260.8,3260.1,5.37]
[1736686056163,0.7773,3260.7,3260.1,5.37]
[1736686057066,0.7773,3260.7,3260.2,3.0]
[1736686057256,0.7773,3260.7,3260.2,3.03066937]
[1736686059441,0.7773,3261.0,3260.3,0.0075]
[1736686059650,0.7773,3261.4,3260.8,2.1467]
[1736686059855,0.7773,3261.4,3260.9,0.03066278]
[1736686060634,0.7773,3261.4,3260.8,2.1467]
[1736686060834,0.7773,3261.4,3260.7,3.0075]
[1736686061580,0.81562995,3261.3,3260.7,3.0]
[1736686061953,0.03833341,3261.2,3260.7,3.0]
[1736686062148,0.7773,3261.1,3260.7,3.0]
[1736686062365,0.03833495,3261.0,3260.7,3.0]
[1736686062549,0.03833495,3261.0,3260.6,3.0]
[1736686062762,0.7773,3260.9,3260.5,5.37]
[1736686062949,0.7773,3260.7,3260.5,5.37]
[1736686065170,0.7773,3260.9,3260.5,5.37]
[1736686066309,0.7773,3260.9,3260.1,5.14717]
[1736686066683,0.21554199,3260.8,3260.1,5.14717]
[1736686066848,0.21554199,3260.8,3260.1,6.199637]
[1736686067186,0.21554199,3260.8,3260.2,2.17776898]
[1736686067574,0.21554199,3260.8,3260.2,2.1471]
[1736686068161,0.25387819,3260.8,3260.2,2.1471]
[1736686070847,0.21554199,3260.8,3260.2,2.1471]
[1736686075871,0.03833623,3260.7,3260.1,3.0]
[1736686076067,0.7744,3260.6,3260.1,3.0]
[1736686079802,0.2152157,3260.5,3260.1,3.0]
[1736686081562,0.7744,3260.6,3260.1,3.0]
[1736686081900,0.21504571,3260.5,3260.1,3.0]
[1736686082279,0.21504571,3260.5,3260.1,4.08239431]
[1736686082458,0.7744,3260.6,3260.1,4.08239431]
[1736686083195,0.7744,3260.6,3260.1,4.051723]
[1736686083708,0.7744,3260.6,3260.2,2.14705]
[1736686085366,0.7744,3260.6,3260.2,2.17771912]
[1736686085617,0.7744,3260.6,3260.1,3.0]
[1736686091597,0.7744,3260.6,3260.2,0.0306691]
[1736686092505,0.7744,3260.6,3260.1,5.14716]
[1736686094417,0.7744,3260.6,3260.1,3.0]
[1736686094726,0.0383364,3260.5,3260.1,3.0]
[1736686095095,0.81274033,3260.6,3260.1,3.0]
[1736686095523,0.21512051,3260.5,3260.1,3.0]
[1736686096356,0.21512051,3260.5,3260.0,3.0]
[1736686096498,0.21512051,3260.5,3260.0,0.0306717]
[1736686097018,0.21512051,3260.5,3259.9,2.14727]
[1736686097205,0.21512051,3260.5,3260.0,0.0306717]
[1736686097411,0.21512051,3260.5,3260.0,2.1779017]
[1736686097729,0.7744,3260.6,3260.0,2.1779017]
[1736686098120,0.7744,3260.6,3260.1,0.0075]
[1736686099695,0.7744,3260.6,3260.2,2.14708]
[1736686100340,0.7744,3260.6,3260.2,2.17774909]
[1736686105745,0.7744,3260.6,3260.1,0.0075]
[1736686107247,0.7744,3260.6,3260.1,5.15465]
[1736686108162,0.7744,3260.6,3260.2,0.03066983]
[1736686108563,0.7744,3260.6,3260.2,0.03066911]
[1736686110364,0.7744,3260.6,3260.1,5.15465]
[1736686111586,0.7744,3260.6,3260.2,0.03066912]
[1736686112087,0.7744,3260.6,3260.1,5.15465]
[1736686113992,0.7744,3260.6,3260.2,0.03066913]
[1736686114192,0.7744,3260.6,3260.1,5.15465]
[1736686114566,0.7744,3260.6,3260.1,2.15465]
[1736686115096,0.7744,3260.6,3260.2,2.17776914]
[1736686116582,0.7744,3260.6,3260.3,3.0]
[1736686117591,0.7744,3260.6,3260.2,2.1471]
[1736686117757,0.7744,3260.6,3260.2,2.1777691]
[1736686119466,0.7744,3260.6,3260.1,0.0075]
[1736686119795,0.7744,3260.6,3260.1,2.18532913]
[1736686119983,0.7744,3260.6,3260.1,2.15466]
[1736686120370,0.7744,3260.6,3260.2,0.03066912]
[1736686120694,0.7744,3260.6,3260.1,2.15466]
[1736686121197,0.7744,3260.6,3260.2,0.03066915]
[1736686121496,0.7744,3260.6,3260.2,0.03066911]
[1736686121703,0.7744,3260.6,3260.1,2.15466]
[1736686121874,0.7744,3260.6,3260.2,0.03066914]
[1736686122073,0.7744,3260.6,3260.1,2.15466]
[1736686123099,0.7744,3260.6,3260.2,0.03066914]
[1736686125001,0.7744,3260.6,3260.2,2.14708]
[1736686126776,0.8021,3261.4,3260.7,2.14672]
[1736686127108,0.21463437,3261.3,3260.8,2.17736474]
[1736686127285,0.8021,3261.4,3260.7,0.0075]
[1736686127494,0.21463437,3261.2,3260.8,2.14669]
[1736686127804,0.8021,3261.4,3260.8,2.14669]
[1736686128272,0.21463437,3261.3,3260.8,2.14669]
[1736686128679,0.21463437,3261.3,3260.5,0.0075]
[1736686128878,0.21463437,3261.3,3260.4,4.37343056]
[1736686128879,0.84042927,3261.2,3260.4,5.14694]
[1736686129284,0.21463437,3261.1,3260.4,5.14694]
[1736686129470,0.21463437,3261.1,3260.4,6.29666649]
[1736686130331,0.21463437,3261.1,3260.5,0.03066603]
[1736686130730,0.21463437,3261.1,3260.4,6.29666649]
[1736686131107,0.8021,3261.0,3260.4,6.29666649]
[1736686131413,0.8021,3261.0,3260.5,1.16666665]
[1736686131610,0.21463437,3260.9,3260.6,0.03066603]
[1736686132134,0.21463437,3260.9,3260.6,3.03066603]
[1736686132490,0.21463437,3260.9,3260.7,2.91601]
[1736686132696,0.8021,3261.3,3260.8,2.17737442]
[1736686133107,0.21463437,3261.2,3260.8,2.17737442]
[1736686133308,0.8021,3261.3,3260.8,2.77204186]
[1736686133535,0.21479074,3261.1,3260.8,2.74137744]
[1736686133704,0.8021,3261.3,3260.8,2.74137744]
[1736686133935,0.21479074,3261.0,3260.8,2.74137744]
[1736686134114,0.8021,3261.3,3260.8,2.74137744]
[1736686134499,0.21479074,3261.2,3260.8,2.74137744]
[1736686134722,0.8021,3261.3,3260.8,0.59466744]
[1736686134908,0.21504228,3261.1,3260.7,0.0075]
[1736686135097,0.8021,3261.3,3260.7,0.0075]
[1736686135298,0.21504228,3261.0,3260.7,0.0075]
[1736686135519,0.8021,3261.3,3260.7,0.0075]
[1736686135935,0.21504228,3261.2,3260.7,0.0075]
[1736686136232,0.21504228,3261.2,3260.7,0.63959767]
[1736686136614,0.21504228,3261.2,3260.8,0.03066306]
[1736686136921,0.8021,3261.3,3260.7,0.63959767]
[1736686137243,0.8021,3261.3,3260.8,0.03066307]
[1736686137425,0.21506947,3261.2,3260.7,2.78636767]
[1736686137612,0.21506947,3261.2,3260.8,0.30929982]
[1736686137936,0.8021,3261.3,3260.8,0.30929982]
[1736686138124,0.21506947,3261.1,3260.8,0.30929982]
[1736686138325,0.8021,3261.3,3260.8,0.30929982]
[1736686138701,0.21506947,3261.2,3260.8,0.30929982]
[1736686138896,0.8021,3261.3,3260.9,0.30956675]
[1736686139110,0.21506947,3261.1,3260.9,0.30956675]
[1736686139302,0.8021,3261.3,3260.9,0.3402298]
[1736686139502,0.21506947,3261.0,3260.9,0.3402298]
[1736686139703,0.8021,3261.3,3260.9,0.30956675]
[1736686139903,0.21506947,3261.0,3260.9,0.03066306]
[1736686140143,0.8021,3261.3,3260.8,0.27863677]
[1736686140341,0.8021,3261.3,3260.9,0.03066306]
[1736686140527,0.21506947,3261.2,3260.8,0.27863677]
[1736686140715,0.8021,3261.3,3260.8,0.27863677]
[1736686140913,0.21506947,3261.1,3260.9,0.03066306]
[1736686141144,0.8021,3261.3,3260.9,0.03066306]
[1736686141501,0.21506947,3261.2,3260.9,0.03066306]
[1736686141702,2.1461,3261.8,3261.0,0.8239]
[1736686142005,0.7703,3261.7,3261.0,5.97798]
[1736686142206,2.14575,3262.3,3261.3,2.15382]
[1736686142405,0.20808158,3261.6,3261.3,2.15382]
[1736686142742,0.7703,3262.2,3261.3,2.15382]
[1736686143148,0.20808158,3262.1,3261.3,2.15382]
[1736686143332,0.20808158,3262.1,3261.4,3.0]
[1736686144254,0.7703,3262.0,3261.3,1.060632]
[1736686144408,0.97868839,3262.0,3261.3,1.060632]
[1736686146030,0.03832123,3261.9,3261.3,1.053132]
[1736686146454,0.7564,3261.8,3261.4,3.0]
[1736686146647,0.7564,3261.8,3261.5,0.6199502]
[1736686147216,0.7564,3261.8,3261.4,3.0]
[1736686147550,0.7564,3261.8,3261.4,3.03065875]
[1736686148933,0.7564,3262.1,3261.4,3.03065875]
[1736686149144,0.20838839,3261.7,3261.4,3.03065875]
[1736686149307,0.7564,3262.1,3261.4,3.03065875]
[1736686149964,0.20838839,3262.0,3261.4,3.0]
[1736686150277,0.20838839,3262.0,3261.4,3.6199502]
[1736686151334,0.20838839,3262.0,3261.4,3.0]
[1736686153480,0.20838839,3262.0,3261.4,3.7964]
[1736686153694,0.7564,3262.1,3261.4,3.7964]
[1736686153695,0.7564,3262.1,3261.5,0.03815707]
[1736686153993,2.1454,3262.8,3261.9,2.14594]
[1736686153994,0.7564,3262.5,3261.9,2.14594]
[1736686154169,0.7564,3262.5,3262.0,0.03065213]
[1736686154481,2.14529,3263.0,3262.2,0.8197]
[1736686154482,0.20879746,3262.4,3262.2,0.8197]
[1736686154683,0.8041,3262.9,3262.2,3.8197]
[1736686154824,0.8041,3262.9,3262.3,0.0075]
[1736686155026,0.8041,3262.9,3262.4,0.03064835]
[1736686155420,0.8041,3262.9,3262.3,5.15321]
[1736686155624,0.8041,3262.9,3262.4,0.03064835]
[1736686156427,0.8041,3262.9,3262.3,5.15321]
[1736686156664,0.8041,3262.9,3262.3,5.750501]
[1736686157317,0.8041,3262.9,3262.4,0.03064835]
[1736686157823,0.8041,3262.9,3262.3,5.750501]
[1736686160620,0.8041,3262.9,3262.3,3.604791]
[1736686162628,0.2089474,3262.8,3262.3,3.604791]
[1736686162830,0.2089474,3262.8,3262.4,0.6570271]
[1736686164065,0.2089474,3262.8,3262.4,0.03064837]
[1736686164294,0.8041,3263.2,3262.6,0.8197]
[1736686164454,0.20938353,3262.7,3262.6,0.8197]
[1736686164632,0.8041,3263.2,3262.6,0.8197]
[1736686165194,0.20938353,3263.1,3262.6,0.8197]
[1736686165487,0.8041,3263.2,3262.6,1.653228]
[1736686165838,0.20938353,3263.0,3262.6,1.653228]
[1736686166037,0.8041,3263.2,3262.6,1.653228]
[1736686166238,0.20938353,3263.1,3262.6,1.653228]
[1736686166601,0.8041,3263.2,3262.6,1.653228]
[1736686166956,2.94924,3263.2,3262.6,0.833528]
[1736686167270,0.20938353,3263.1,3262.6,0.833528]
[1736686167649,0.24769132,3263.1,3262.4,5.37]
[1736686167893,2.14534,3262.9,3262.4,5.37]
[1736686168037,0.03831234,3262.8,3262.4,5.37]
[1736686168473,0.2100582,3262.7,3262.4,5.37]
[1736686168682,0.7511,3262.6,3262.4,5.37]
[1736686168974,0.99934972,3262.6,3262.4,5.37]
[1736686169339,0.20993556,3262.6,3262.4,5.37]
[1736686169703,0.03831468,3262.7,3262.4,5.37]
[1736686169991,0.20993556,3262.5,3262.4,5.37]
[1736686170296,0.03831468,3262.7,3262.4,5.37]
[1736686170594,0.20989468,3262.5,3262.4,5.37]
[1736686170737,0.03831468,3262.7,3262.4,5.37]
[1736686170938,0.20989468,3262.5,3262.4,5.37]
[1736686171139,0.03831468,3262.7,3261.9,5.14598]
[1736686171391,0.20989468,3262.5,3262.0,0.590158]
[1736686171593,0.03831468,3262.7,3262.0,0.590158]
[1736686171920,0.20989468,3262.6,3262.0,0.590158]
[1736686172219,0.03831468,3262.7,3262.0,0.590158]
[1736686172581,0.20989468,3262.6,3262.0,0.590158]
[1736686172797,0.20989468,3262.6,3262.1,0.5736138]
[1736686173118,0.20989468,3262.5,3262.1,0.5736138]
[1736686173315,0.03831468,3262.7,3262.1,0.5736138]
[1736686173484,0.20989468,3262.4,3262.1,0.5736138]
[1736686173670,0.7511,3262.8,3262.1,0.5736138]
[1736686173871,0.20989468,3262.3,3262.1,0.5736138]
[1736686174095,0.7511,3262.8,3262.2,0.27501755]
[1736686174291,0.20989468,3262.2,3262.1,0.5736138]
[1736686174684,0.03831467,3262.7,3262.1,0.5736138]
[1736686175067,0.20981293,3262.6,3262.1,0.5736138]
[1736686175277,0.7511,3262.8,3262.1,0.5736138]
[1736686175492,0.20981293,3262.5,3262.1,0.60426553]
[1736686175688,0.7511,3262.8,3262.2,0.57501755]
[1736686175916,0.03831466,3262.7,3262.0,2.14591]
[1736686176318,0.20981293,3262.6,3262.0,2.14591]
[1736686178127,0.20981293,3262.6,3262.1,0.03065173]
[1736686178308,0.7511,3262.8,3262.1,0.03065173]
[1736686178482,0.20984018,3262.5,3262.0,2.14591]
[1736686178683,0.03831466,3262.7,3262.1,0.214591]
[1736686178884,0.20984018,3262.4,3262.1,0.214591]
[1736686179086,0.7511,3262.8,3262.2,0.7611]
[1736686179315,0.7511,3262.8,3262.2,3.7611]
[1736686179782,0.20978567,3262.7,3262.2,3.7611]
[1736686180338,0.7511,3262.8,3262.2,3.7611]
[1736686180538,0.20979248,3262.6,3262.2,3.7611]
[1736686180829,0.7511,3262.8,3262.2,4.3732531]
[1736686181034,0.7511,3262.8,3262.2,1.3732531]
[1736686181228,0.20979248,3262.7,3262.2,2.90688]
[1736686181526,0.7776,3263.0,3262.3,2.14571]
[1736686181727,0.7776,3263.0,3262.3,5.14571]
[1736686181932,0.7776,3263.0,3262.4,0.0306487]
[1736686182299,0.20988788,3262.9,3262.4,0.0306487]
[1736686182499,0.20988788,3262.9,3262.4,3.52980305]
[1736686185104,0.20988788,3262.9,3262.4,3.56045174]
[1736686185429,2.92271,3263.3,3262.5,0.7611]
[1736686185631,0.20988788,3262.8,3262.6,3.0]
[1736686185813,0.7776,3263.3,3262.6,3.0]
[1736686185998,0.20996965,3262.7,3262.6,3.0]
[1736686186202,0.03830994,3263.2,3262.6,3.6436483]
[1736686186397,0.03830994,3263.2,3262.6,3.0]
[1736686186670,0.20996965,3263.1,3262.6,3.0]
[1736686187340,0.20996965,3263.1,3262.5,0.7611]
[1736686187701,0.20996965,3263.1,3262.5,0.79174784]
[1736686188003,0.0383098,3263.2,3262.5,0.7611]
[1736686188218,0.21013316,3263.0,3262.5,1.051773]
[1736686188536,0.21013316,3262.9,3262.5,1.051773]
[1736686188702,0.0383098,3263.2,3262.5,1.051773]
[1736686188903,0.21013316,3263.1,3262.5,1.051773]
[1736686189103,0.21013316,3263.1,3262.5,1.08242084]
[1736686189299,2.92266,3263.3,3262.6,0.32280508]
[1736686189506,0.21013316,3263.0,3262.5,0.7611]
[1736686189728,0.0383098,3263.2,3262.5,0.7611]
[1736686189934,0.21013316,3262.9,3262.2,5.94656]
[1736686190258,0.03831085,3263.0,3262.2,5.94656]
[1736686190417,0.21013316,3262.8,3262.2,5.94656]
[1736686190618,0.03831085,3263.0,3262.3,1.1531151]
[1736686191022,0.21013316,3262.9,3262.3,1.1531151]
[1736686193822,0.21013316,3262.9,3262.4,3.0]
[1736686194016,0.21013316,3262.9,3262.4,3.0306487]
[1736686194356,0.8177,3263.1,3262.4,3.0306487]
[1736686194651,0.21009229,3263.0,3262.4,3.0306487]
[1736686194850,0.21009229,3263.0,3262.4,3.74367208]
[1736686195359,0.21009229,3263.0,3262.4,2.88932208]
[1736686195649,0.21009229,3263.0,3262.5,0.8008]
[1736686195813,0.8177,3263.1,3262.5,0.8008]
[1736686197328,0.8177,3262.9,3262.2,0.0075]
[1736686197522,0.8177,3262.9,3262.2,3.0075]
[1736686198364,0.8177,3262.9,3262.2,5.15326]
[1736686199269,0.8177,3262.9,3262.2,6.285666]
[1736686199958,0.03831088,3262.8,3262.2,3.0]
[1736686200319,0.21012634,3262.7,3262.2,3.0]
[1736686201230,0.21012634,3262.7,3262.1,6.1708]
[1736686201231,0.21012634,3262.7,3262.1,0.8008]
[1736686201623,2.18374088,3262.8,3262.1,0.8008]
[1736686202160,0.21011952,3262.7,3262.1,0.8008]
[1736686202464,2.18374088,3262.8,3262.1,0.8008]
[1736686202826,0.21011952,3262.7,3262.1,0.8008]
[1736686203021,0.21011952,3262.7,3262.1,1.395477]
[1736686203219,0.8177,3262.9,3262.2,3.03065171]
[1736686203426,0.8177,3262.9,3262.2,2.17643171]
[1736686203654,0.20981293,3262.8,3262.3,0.0075]
[1736686203842,0.20981293,3262.8,3262.5,3.0]
[1736686204025,0.20981293,3262.8,3262.5,3.62604139]
[1736686204227,0.8177,3263.2,3262.5,3.62604139]
[1736686204727,0.20981293,3263.1,3262.5,3.03064739]
[1736686204930,0.24812199,3263.1,3262.5,3.0]
[1736686205759,0.20981293,3263.1,3262.5,3.0]
[1736686206594,0.20981293,3263.1,3262.4,0.8008]
[1736686206884,2.90875,3262.9,3261.9,0.7872]
[1736686207089,0.7634,3262.7,3261.9,0.7872]
[1736686207286,0.03831458,3262.6,3261.9,0.7872]
[1736686207491,2.1456,3262.5,3261.9,3.7872]
[1736686208003,0.7634,3262.7,3261.9,3.7872]
[1736686208004,0.20999688,3262.4,3261.9,3.7872]
[1736686208480,2.14558,3262.6,3261.9,3.7872]
[1736686208649,0.20983337,3262.3,3261.9,0.7872]
[1736686208851,2.18391852,3262.5,3261.9,0.7872]
[1736686209362,0.20977886,3262.4,3261.9,0.7872]
[1736686210447,0.7634,3262.3,3261.6,3.7872]
[1736686210643,0.7634,3262.3,3261.6,0.7872]
[1736686210872,2.94743856,3262.3,3261.6,0.7872]
[1736686211094,0.20969027,3262.2,3261.6,0.7872]
[1736686211292,0.03832063,3262.1,3261.6,0.7872]
[1736686211870,0.03832063,3262.2,3261.6,0.7872]
[1736686212284,0.20966301,3262.1,3261.6,0.7872]
[1736686212489,0.20966301,3262.1,3261.5,3.0]
[1736686212699,2.14586,3262.1,3261.5,3.0]
[1736686212907,1.01138532,3262.0,3261.4,5.37]
[1736686213680,2.146,3261.9,3261.4,5.37]
[1736686213850,0.03832501,3261.8,3261.4,5.37]
[1736686214051,0.24781084,3261.8,3261.4,5.37]
[1736686214251,0.03832501,3261.8,3261.4,5.37]
[1736686214455,0.20948583,3261.7,3261.4,5.37]
[1736686214955,0.20948583,3261.6,3261.1,3.7872]
[1736686215149,0.03832498,3261.9,3261.2,0.65669127]
[1736686215599,0.20948583,3261.8,3261.2,0.65669127]
[1736686216416,0.20948583,3261.8,3261.3,2.14636]
[1736686216553,0.20948583,3261.8,3261.6,0.7872]
[1736686216766,0.7634,3262.3,3261.7,5.17677465]
[1736686216968,0.20935633,3262.2,3261.7,5.17677465]
[1736686217164,2.90883,3262.8,3261.7,5.17677465]
[1736686217359,2.18379708,3262.7,3261.7,5.74251747]
[1736686217598,2.39281947,3262.7,3261.7,5.74251747]
[1736686218877,0.24733947,3262.7,3261.7,5.74251747]
[1736686219081,2.14557,3262.6,3261.7,3.59639747]
[1736686219278,0.0383171,3262.5,3261.7,3.59639747]
[1736686219717,0.20902239,3262.4,3261.7,3.59639747]
[1736686220037,0.20902239,3262.4,3261.6,2.93338]
[1736686220038,0.20902239,3262.4,3261.8,3.65297775]
[1736686220840,0.7634,3262.3,3261.6,0.7872]
[1736686220982,2.9474871,3262.3,3261.6,0.7872]
[1736686221641,0.20902239,3262.2,3261.6,0.7872]
[1736686223179,0.7634,3262.0,3261.5,3.0]
[1736686223380,0.03832441,3261.9,3261.5,3.0]
[1736686223799,0.7634,3262.0,3261.5,3.0]
[1736686224584,2.90935,3262.0,3261.5,3.0]
[1736686224789,0.03832554,3261.9,3261.5,3.0]
[1736686224983,2.39360058,3261.9,3261.5,3.0]
[1736686228131,2.39360058,3261.9,3261.1,3.0]
[1736686228847,2.35527504,3261.9,3261.2,0.03066042]
[1736686230015,2.39360057,3261.9,3261.1,3.0]
[1736686230212,0.20929504,3261.9,3261.2,0.03066042]
[1736686230546,0.20929504,3261.9,3261.5,3.0]
[1736686230758,0.20929504,3261.9,3261.5,3.03065741]
[1736686231052,0.20929504,3261.9,3261.5,3.0]
[1736686232735,0.20929504,3261.9,3261.4,0.781]
[1736686232915,0.20929504,3261.9,3261.3,0.0075]
[1736686234226,0.20929504,3261.9,3261.3,3.0075]
[1736686235520,0.20929504,3261.9,3261.3,3.0]
[1736686235741,0.03832183,3261.8,3261.3,3.0]
[1736686236075,0.25084778,3261.7,3261.3,3.0]
[1736686236572,0.03832437,3261.9,3261.3,3.0]
[1736686236921,0.25084778,3261.8,3261.3,3.0]
[1736686237536,0.7971,3261.7,3261.3,3.0]
[1736686237870,2.14623,3261.6,3260.9,3.0]
[1736686238019,0.7971,3261.4,3260.9,3.0]
[1736686238220,0.25083415,3261.3,3260.9,3.0]
[1736686238452,0.25083415,3261.3,3260.9,3.03066299]
[1736686239931,0.25083415,3261.3,3261.0,0.781]
[1736686240233,0.25060235,3261.2,3261.0,0.781]
[1736686240564,0.25060235,3261.2,3261.1,0.41182926]
[1736686240725,0.7971,3261.7,3261.1,0.41182926]
[1736686240925,0.7971,3261.7,3261.1,0.03066296]
[1736686241130,0.25058872,3261.6,3261.1,0.03066296]
[1736686241327,0.25058872,3261.6,3261.4,2.1463]
[1736686241657,0.7971,3262.0,3261.5,3.81165762]
[1736686242028,0.25043192,3261.9,3261.5,3.81165762]
[1736686242424,0.25043192,3261.9,3261.6,2.14616]
[1736686242668,0.7971,3262.5,3261.7,2.1842149]
[1736686242870,0.7971,3262.5,3261.8,3.781]
[1736686243188,0.7971,3262.5,3261.9,0.03065338]
[1736686243693,0.25045238,3262.4,3261.9,0.03065338]
[1736686245157,0.25045238,3262.4,3261.9,0.32717172]
[1736686245360,0.7971,3262.9,3262.2,3.0]
[1736686245662,0.25127721,3262.8,3262.3,2.17634898]
[1736686245993,0.7971,3263.1,3262.3,2.1457]
[1736686246292,0.25127721,3263.0,3262.6,0.0075]
[1736686246588,0.7534,3263.4,3262.6,0.0075]
[1736686246589,0.79170607,3263.4,3262.6,0.0075]
[1736686246930,0.25146802,3263.3,3262.6,0.304522]
[1736686249174,0.25146802,3263.3,3262.6,5.674522]
[1736686249401,0.79170607,3263.4,3262.6,5.674522]
[1736686249761,0.03830644,3263.3,3262.6,5.674522]
[1736686249959,0.25146802,3263.2,3262.6,5.674522]
[1736686250459,0.25146802,3263.2,3262.6,5.667022]
[1736686252605,2.39659802,3263.2,3262.6,5.667022]
[1736686252771,2.39659802,3263.2,3262.6,5.37]
[1736686253569,2.39659802,3263.2,3262.7,0.03064627]
[1736686254204,2.39659802,3263.2,3262.6,5.37]
[1736686256416,2.39659802,3263.2,3262.7,0.03064628]
[1736686256567,0.25146802,3263.2,3262.7,3.03064628]
[1736686256768,2.89845,3263.4,3262.8,0.84006463]
[1736686256972,0.2522175,3263.3,3262.7,3.03064628]
[1736686257172,2.18336785,3263.3,3262.7,3.03064628]
[1736686257385,0.2522175,3263.2,3262.7,3.0]
[1736686257775,2.3974075,3263.2,3262.7,3.0]
[1736686257976,2.3974075,3263.2,3262.7,3.03064628]
[1736686258177,2.3974075,3263.2,3262.7,3.0]
[1736686260406,2.3974075,3263.2,3262.7,3.03064629]
[1736686262520,0.2522175,3263.2,3262.7,3.03064629]
[1736686263022,0.25225837,3263.1,3262.7,3.03064629]
[1736686263216,2.89843,3263.4,3262.7,3.03064629]
[1736686263419,0.25229927,3263.3,3262.7,3.03064629]
[1736686267690,0.25229927,3263.3,3262.8,0.8078]
[1736686269453,2.14489,3263.6,3262.9,0.03064628]
[1736686269629,0.2523742,3263.5,3262.9,0.03064628]
[1736686270001,0.2523742,3263.5,3262.6,5.37]
[1736686270002,0.85400539,3263.4,3262.6,5.37]